fUSD/lending_fUSD_20250117
["ID","MTS","AMOUNT","RATE_DAILY","PERIOD"]
[349360075,1737135043419,-500.0,0.00023199,2]
[349360079,1737135043429,-500.0,0.00023199,2]
[349360083,1737135043439,-500.0,0.00023199,2]
[349360087,1737135043448,-500.0,0.00023199,2]
[349360091,1737135043458,-500.0,0.00023199,2]
[349360095,1737135043467,-500.0,0.00023199,2]
[349360098,1737135043476,-500.0,0.00023199,2]
[349360101,1737135043485,-500.0,0.00023199,2]
[349360104,1737135043494,-500.0,0.00023199,2]
[349360106,1737135043503,-500.0,0.00023199,2]
[349360109,1737135043512,-500.0,0.00023199,2]
[349360112,1737135043521,-500.0,0.00023199,2]
[349360115,1737135043533,-500.0,0.00023199,2]
[349360118,1737135043543,-500.0,0.00023199,2]
[349360121,1737135043552,-500.0,0.00023199,2]
[349360124,1737135043561,-500.0,0.00023199,2]
[349360127,1737135043570,-500.0,0.00023199,2]
[349360130,1737135043580,-500.0,0.00023199,2]
[349360133,1737135043589,-383.64,0.00023199,2]
[349360136,1737135043599,-500.0,0.00023199,2]
[349360139,1737135043608,-500.0,0.00023199,2]
[349360141,1737135043617,-500.0,0.00023199,2]
[349360143,1737135043626,-500.0,0.00023199,2]
[349360144,1737135043636,-500.0,0.00023199,2]
[349360146,1737135043648,-500.0,0.00023199,2]
[349360148,1737135043658,-500.0,0.00023199,2]
[349360151,1737135043667,-500.0,0.00023199,2]
[349360153,1737135043677,-500.0,0.00023199,2]
[349360155,1737135043687,-388.73924191,0.00023199,2]
[349360156,1737135043697,-377.91,0.00023199,2]
[349360159,1737135043706,-500.0,0.00023199,2]
[349360161,1737135043716,-500.0,0.00023199,2]
[349360163,1737135043726,-500.0,0.00023199,2]
[349360165,1737135043736,-500.0,0.00023199,2]
[349360167,1737135043749,-500.0,0.00023199,2]
[349360169,1737135043758,-239.22,0.00023199,2]
[349360187,1737135043920,-182.76,0.00023199,2]
[349360189,1737135043930,-500.0,0.00023199,2]
[349360191,1737135043939,-512.04173972,0.00023199,2]
[349360193,1737135043949,-645.13,0.00023199,2]
[349360195,1737135043959,-500.0,0.00023199,2]
[349360197,1737135043969,-335.1,0.00023199,2]
[349360199,1737135043978,-500.0,0.00023199,2]
[349360201,1737135043988,-160.73,0.00023199,2]
[349360203,1737135043997,-500.0,0.00023199,2]
[349360205,1737135044007,-500.0,0.00023199,2]
[349360207,1737135044016,-426.55,0.00023199,2]
[349360209,1737135044026,-500.0,0.00023199,2]
[349360211,1737135044035,-500.0,0.00023199,2]
[349360213,1737135044045,-500.0,0.00023199,2]
[349360215,1737135044054,-500.0,0.00023199,2]
[349360217,1737135044064,-500.0,0.00023199,2]
[349360219,1737135044073,-500.0,0.00023199,2]
[349360221,1737135044082,-500.0,0.00023199,2]
[349360223,1737135044091,-234.35,0.00023199,2]
[349360225,1737135044101,-500.0,0.00023199,2]
[349360227,1737135044111,-310.9,0.00023199,2]
[349360230,1737135044121,-500.0,0.00023199,2]
[349360233,1737135044130,-500.0,0.00023199,2]
[349360235,1737135044140,-500.0,0.00023199,2]
[349360237,1737135044154,-500.0,0.00023199,2]
[349360239,1737135044163,-498.34,0.00023199,2]
[349360241,1737135044173,-369.76,0.00023199,2]
[349360243,1737135044183,-500.0,0.00023199,2]
[349360245,1737135044192,-532.16,0.00023199,2]
[349360247,1737135044201,-500.0,0.00023199,2]
[349360249,1737135044211,-528.65,0.00023199,2]
[349360251,1737135044220,-500.0,0.00023199,2]
[349360253,1737135044230,-600.5,0.00023199,2]
[349360255,1737135044239,-500.0,0.00023199,2]
[349360257,1737135044249,-633.24,0.00023199,2]
[349360259,1737135044259,-500.0,0.00023199,2]
[349360261,1737135044269,-500.0,0.00023199,2]
[349360263,1737135044278,-500.0,0.00023199,2]
[349360265,1737135044288,-500.0,0.00023199,2]
[349360267,1737135044298,-500.0,0.00023199,2]
[349360269,1737135044307,-500.0,0.00023199,2]
[349360271,1737135044316,-500.0,0.00023199,2]
[349360273,1737135044327,-500.0,0.00023199,2]
[349360275,1737135044336,-500.0,0.00023199,2]
[349360277,1737135044347,-500.0,0.00023199,2]
[349360278,1737135044357,-500.0,0.00023199,2]
[349360279,1737135044367,-645.06,0.00023199,2]
[349360280,1737135044378,-500.0,0.00023199,2]
[349360281,1737135044389,-164.58,0.00023199,2]
[349360282,1737135044402,-500.0,0.00023199,2]
[349360283,1737135044411,-541.66,0.00023199,2]
[349360284,1737135044421,-500.0,0.00023199,2]
[349360285,1737135044432,-500.0,0.00023199,2]
[349360287,1737135044441,-497.2,0.00023199,2]
[349360289,1737135044451,-500.0,0.00023199,2]
[349360291,1737135044463,-500.0,0.00023199,2]
[349360293,1737135044472,-500.0,0.00023199,2]
[349360295,1737135044482,-500.0,0.00023199,2]
[349360297,1737135044491,-375.0,0.00023199,2]
[349360299,1737135044501,-500.0,0.00023199,2]
[349360301,1737135044511,-500.0,0.00023199,2]
[349360303,1737135044520,-500.0,0.00023199,2]
[349360305,1737135044532,-500.0,0.00023199,2]
[349360307,1737135044543,-500.0,0.00023199,2]
[349360309,1737135044553,-346.03,0.00023199,2]
[349360311,1737135044562,-500.0,0.00023199,2]
[349360313,1737135044572,-500.0,0.00023199,2]
[349360315,1737135044582,-500.0,0.00023199,2]
[349360317,1737135044591,-500.0,0.00023199,2]
[349360319,1737135044601,-500.0,0.00023199,2]
[349360321,1737135044611,-500.0,0.00023199,2]
[349360323,1737135044620,-500.0,0.00023199,2]
[349360325,1737135044630,-500.0,0.00023199,2]
[349360327,1737135044640,-500.0,0.00023199,2]
[349360329,1737135044652,-209.66,0.00023199,2]
[349360331,1737135044662,-500.0,0.00023199,2]
[349360334,1737135044672,-500.0,0.00023199,7]
[349360335,1737135044681,-500.0,0.00023199,7]
[349360338,1737135044692,-1054.85,0.00023199,2]
[349360340,1737135044702,-1054.85,0.00023199,2]
[349360342,1737135044711,-500.0,0.00023199,2]
[349360344,1737135044722,-1054.85,0.00023199,2]
[349360346,1737135044731,-1054.85,0.00023199,2]
[349360348,1737135044745,-1054.85,0.00023199,2]
[349360350,1737135044755,-1054.85,0.00023199,2]
[349360352,1737135044765,-1054.85,0.00023199,2]
[349360354,1737135044775,-333.33,0.00023199,2]
[349360356,1737135044786,-1054.85,0.00023199,2]
[349360358,1737135044795,-500.0,0.00023199,2]
[349360360,1737135044806,-500.0,0.00023199,2]
[349360362,1737135044816,-1054.85,0.00023199,2]
[349360364,1737135044825,-500.0,0.00023199,2]
[349360366,1737135044835,-1054.85,0.00023199,2]
[349360368,1737135044845,-500.0,0.00023199,2]
[349360370,1737135044855,-1054.85,0.00023199,2]
[349360372,1737135044865,-329.88,0.00023199,2]
[349360374,1737135044874,-1054.85,0.00023199,2]
[349360376,1737135044884,-1054.85,0.00023199,2]
[349360378,1737135044894,-1054.85,0.00023199,2]
[349360380,1737135044905,-1054.85,0.00023199,2]
[349360382,1737135044915,-1054.85,0.00023199,2]
[349360384,1737135044925,-1054.85,0.00023199,2]
[349360386,1737135044935,-1054.85,0.00023199,2]
[349360388,1737135044944,-1054.85,0.00023199,2]
[349360390,1737135044953,-552.38,0.00023199,2]
[349360392,1737135044963,-1054.85,0.00023199,2]
[349360394,1737135044973,-1054.85,0.00023199,2]
[349360396,1737135044983,-500.0,0.00023199,2]
[349360398,1737135044993,-1055.08461645,0.00023199,2]
[349360400,1737135045004,-500.0,0.00023199,2]
[349360402,1737135045014,-500.0,0.00023199,2]
[349360404,1737135045024,-500.0,0.00023199,2]
[349360406,1737135045033,-500.0,0.00023199,2]
[349360408,1737135045044,-500.0,0.00023199,2]
[349360410,1737135045054,-500.0,0.00023199,2]
[349360412,1737135045063,-500.0,0.00023199,2]
[349360414,1737135045074,-500.0,0.00023199,2]
[349360416,1737135045084,-513.5,0.00023199,2]
[349360418,1737135045094,-500.0,0.00023199,2]
[349360420,1737135045104,-500.0,0.00023199,2]
[349360422,1737135045114,-500.0,0.00023199,2]
[349360425,1737135045124,-500.0,0.00023199,2]
[349360427,1737135045133,-500.0,0.00023199,2]
[349360428,1737135045143,-500.0,0.00023199,2]
[349360430,1737135045153,-500.0,0.00023199,2]
[349360433,1737135045163,-448.95,0.00023199,2]
[349360434,1737135045173,-345.72,0.00023199,2]
[349360437,1737135045183,-613.73,0.00023199,2]
[349360439,1737135045192,-500.0,0.00023199,2]
[349360441,1737135045202,-391.26297662,0.00023199,2]
[349360443,1737135045211,-500.0,0.00023199,2]
[349360445,1737135045221,-500.0,0.00023199,2]
[349360447,1737135045231,-500.0,0.00023199,2]
[349360449,1737135045242,-500.0,0.00023199,2]
[349360451,1737135045251,-500.0,0.00023199,2]
[349360453,1737135045261,-500.0,0.00023199,2]
[349360455,1737135045270,-500.0,0.00023199,2]
[349360457,1737135045280,-500.0,0.00023199,2]
[349360459,1737135045290,-500.0,0.00023199,2]
[349360461,1737135045300,-500.0,0.00023199,2]
[349360463,1737135045310,-500.0,0.00023199,2]
[349360465,1737135045320,-331.22133693,0.00023199,2]
[349360467,1737135045329,-500.0,0.00023199,2]
[349360469,1737135045338,-500.0,0.00023199,2]
[349360471,1737135045347,-500.0,0.00023199,2]
[349360473,1737135045358,-500.0,0.00023199,2]
[349360475,1737135045369,-500.0,0.00023199,2]
[349360477,1737135045379,-500.0,0.00023199,2]
[349360479,1737135045389,-500.0,0.00023199,2]
[349360481,1737135045399,-238.91999999,0.00023199,2]
[349360483,1737135045408,-500.0,0.00023199,2]
[349360485,1737135045417,-500.0,0.00023199,2]
[349360487,1737135045427,-484.38158231,0.00023199,2]
[349360489,1737135045437,-548.18,0.00023199,2]
[349360491,1737135045447,-500.0,0.00023199,2]
[349360493,1737135045456,-500.0,0.00023199,2]
[349360495,1737135045466,-500.0,0.00023199,2]
[349360497,1737135045476,-150.96787479,0.00023199,2]
[349360499,1737135045486,-172.42,0.00023199,2]
[349360501,1737135045495,-500.0,0.00023199,2]
[349360503,1737135045505,-648.15,0.00023199,2]
[349360505,1737135045515,-500.0,0.00023199,2]
[349360507,1737135045525,-500.0,0.00023199,2]
[349360509,1737135045536,-500.0,0.00023199,2]
[349360511,1737135045546,-613.92,0.00023199,2]
[349360513,1737135045555,-500.0,0.00023199,2]
[349360515,1737135045565,-500.0,0.00023199,2]
[349360517,1737135045575,-500.0,0.00023199,2]
[349360519,1737135045585,-500.0,0.00023199,2]
[349360521,1737135045595,-500.0,0.00023199,2]
[349360523,1737135045605,-177.06,0.00023199,2]
[349360525,1737135045615,-324.4,0.00023199,2]
[349360527,1737135045625,-500.0,0.00023199,2]
[349360529,1737135045634,-500.0,0.00023199,2]
[349360531,1737135045646,-464.78,0.00023199,2]
[349360533,1737135045655,-500.0,0.00023199,2]
[349360535,1737135045665,-500.0,0.00023199,2]
[349360537,1737135045674,-500.0,0.00023199,2]
[349360539,1737135045683,-500.0,0.00023199,2]
[349360541,1737135045693,-500.0,0.00023199,2]
[349360543,1737135045703,-500.0,0.00023199,2]
[349360545,1737135045714,-500.0,0.00023199,2]
[349360547,1737135045724,-500.0,0.00023199,2]
[349360549,1737135045735,-421.99475729,0.00023199,2]
[349360551,1737135045748,-500.0,0.00023199,2]
[349360553,1737135045758,-500.0,0.00023199,2]
[349360555,1737135045767,-377.5,0.00023199,2]
[349360557,1737135045776,-500.0,0.00023199,2]
[349360559,1737135045787,-500.0,0.00023199,2]
[349360561,1737135045797,-500.0,0.00023199,2]
[349360563,1737135045807,-500.0,0.00023199,2]
[349360565,1737135045816,-500.0,0.00023199,2]
[349360567,1737135045826,-500.0,0.00023199,2]
[349360569,1737135045836,-500.0,0.00023199,2]
[349360571,1737135045845,-500.0,0.00023199,2]
[349360573,1737135045854,-500.0,0.00023199,2]
[349360575,1737135045863,-500.0,0.00023199,2]
[349360577,1737135045873,-394.54,0.00023199,2]
[349360579,1737135045883,-500.0,0.00023199,2]
[349360581,1737135045892,-500.0,0.00023199,2]
[349360583,1737135045902,-500.0,0.00023199,2]
[349360585,1737135045912,-500.0,0.00023199,2]
[349360587,1737135045922,-535.33,0.00023199,2]
[349360589,1737135045932,-382.65,0.00023199,2]
[349360591,1737135045942,-500.0,0.00023199,2]
[349360593,1737135045952,-500.0,0.00023199,2]
[349360595,1737135045962,-500.0,0.00023199,2]
[349360597,1737135045972,-500.0,0.00023199,2]
[349360599,1737135045982,-500.0,0.00023199,2]
[349360601,1737135045991,-500.0,0.00023199,2]
[349360603,1737135046001,-500.0,0.00023199,2]
[349360605,1737135046011,-500.0,0.00023199,2]
[349360607,1737135046021,-500.0,0.00023199,2]
[349360609,1737135046030,-500.0,0.00023199,2]
[349360612,1737135046039,-500.0,0.00023199,2]
[349360614,1737135046048,-500.0,0.00023199,2]
[349360616,1737135046058,-500.0,0.00023199,2]
[349360618,1737135046068,-500.0,0.00023199,2]
[349360620,1737135046078,-500.0,0.00023199,2]
[349360622,1737135046087,-500.0,0.00023199,2]
[349360624,1737135046097,-196.92,0.00023199,2]
[349360626,1737135046107,-500.0,0.00023199,2]
[349360628,1737135046117,-500.0,0.00023199,2]
[349360630,1737135046127,-303.39120723,0.00023199,2]
[349360632,1737135046137,-500.0,0.00023199,2]
[349360634,1737135046148,-500.0,0.00023199,2]
[349360636,1737135046158,-500.0,0.00023199,2]
[349360639,1737135046168,-500.0,0.00023199,2]
[349360641,1737135046178,-500.0,0.00023199,2]
[349360643,1737135046187,-500.0,0.00023199,2]
[349360645,1737135046197,-500.0,0.00023199,2]
[349360647,1737135046207,-500.0,0.00023199,2]
[349360649,1737135046216,-500.0,0.00023199,2]
[349360651,1737135046226,-500.0,0.00023199,2]
[349360653,1737135046235,-500.0,0.00023199,2]
[349360655,1737135046245,-500.0,0.00023199,2]
[349360657,1737135046255,-500.0,0.00023199,2]
[349360659,1737135046264,-500.0,0.00023199,2]
[349360661,1737135046273,-500.0,0.00023199,2]
[349360663,1737135046283,-469.16,0.00023199,2]
[349360665,1737135046293,-500.0,0.00023199,2]
[349360667,1737135046302,-500.0,0.00023199,2]
[349360669,1737135046311,-500.0,0.00023199,2]
[349360671,1737135046321,-193.63,0.00023199,2]
[349360678,1737135046373,-500.0,0.00023199,2]
[349360680,1737135046383,-556.78684939,0.00023199,2]
[349360682,1737135046394,-347.51,0.00023199,2]
[349360684,1737135046404,-397.79,0.00023199,2]
[349360685,1737135046414,-178.72,0.00023199,2]
[349360686,1737135046422,-500.0,0.00023199,2]
[349360687,1737135046432,-500.0,0.00023199,2]
[349360688,1737135046441,-500.0,0.00023199,2]
[349360689,1737135046449,-500.0,0.00023199,2]
[349360690,1737135046458,-500.0,0.00023199,2]
[349360691,1737135046467,-500.0,0.00023199,2]
[349360692,1737135046478,-500.0,0.00023199,2]
[349360693,1737135046487,-151.06,0.00023199,2]
[349360694,1737135046496,-500.0,0.00023199,2]
[349360696,1737135046505,-500.0,0.00023199,2]
[349360698,1737135046515,-535.77,0.00023199,2]
[349360700,1737135046525,-500.0,0.00023199,2]
[349360702,1737135046535,-576.18,0.00023199,2]
[349360704,1737135046545,-500.0,0.00023199,2]
[349360706,1737135046555,-500.0,0.00023199,2]
[349360708,1737135046565,-500.0,0.00023199,2]
[349360710,1737135046575,-451.41,0.00023199,2]
[349360712,1737135046584,-500.0,0.00023199,2]
[349360714,1737135046594,-500.0,0.00023199,2]
[349360716,1737135046603,-500.0,0.00023199,2]
[349360718,1737135046612,-500.0,0.00023199,2]
[349360720,1737135046622,-500.0,0.00023199,2]
[349360722,1737135046632,-500.0,0.00023199,2]
[349360724,1737135046641,-500.0,0.00023199,2]
[349360726,1737135046654,-500.0,0.00023199,2]
[349360727,1737135046663,-500.0,0.00023199,2]
[349360730,1737135046673,-500.0,0.00023199,2]
[349360731,1737135046683,-500.0,0.00023199,2]
[349360733,1737135046693,-500.0,0.00023199,2]
[349360735,1737135046703,-495.96,0.00023199,2]
[349360738,1737135046714,-525.67,0.00023199,2]
[349360739,1737135046725,-500.0,0.00023199,2]
[349360741,1737135046735,-500.0,0.00023199,2]
[349360743,1737135046748,-500.0,0.00023199,2]
[349360745,1737135046759,-500.0,0.00023199,2]
[349360747,1737135046770,-500.0,0.00023199,2]
[349360749,1737135046779,-500.0,0.00023199,2]
[349360752,1737135046790,-500.0,0.00023199,2]
[349360754,1737135046800,-474.63,0.00023199,2]
[349360756,1737135046809,-500.0,0.00023199,2]
[349360758,1737135046820,-500.0,0.00023199,2]
[349360759,1737135046830,-500.0,0.00023199,2]
[349360762,1737135046840,-500.0,0.00023199,2]
[349360763,1737135046850,-500.0,0.00023199,2]
[349360765,1737135046860,-500.0,0.00023199,2]
[349360767,1737135046870,-500.0,0.00023199,2]
[349360769,1737135046879,-329.9,0.00023199,2]
[349360771,1737135046888,-500.0,0.00023199,2]
[349360773,1737135046898,-500.0,0.00023199,2]
[349360775,1737135046908,-500.0,0.00023199,2]
[349360777,1737135046917,-500.0,0.00023199,2]
[349360779,1737135046927,-500.0,0.00023199,2]
[349360781,1737135046938,-500.0,0.00023199,2]
[349360783,1737135046948,-500.0,0.00023199,2]
[349360785,1737135046958,-500.0,0.00023199,2]
[349360787,1737135046967,-500.0,0.00023199,2]
[349360789,1737135046977,-618.9,0.00023199,2]
[349360791,1737135046986,-500.0,0.00023199,2]
[349360793,1737135046998,-500.0,0.00023199,2]
[349360795,1737135047007,-500.0,0.00023199,2]
[349360797,1737135047017,-500.0,0.00023199,2]
[349360799,1737135047026,-386.18,0.00023199,2]
[349360801,1737135047035,-500.0,0.00023199,2]
[349360803,1737135047045,-500.0,0.00023199,2]
[349360805,1737135047055,-221.44036585,0.00023199,2]
[349360807,1737135047065,-500.0,0.00023199,2]
[349360809,1737135047074,-500.0,0.00023199,2]
[349360811,1737135047084,-244.24,0.00023199,2]
[349360813,1737135047093,-500.0,0.00023199,2]
[349360815,1737135047103,-500.0,0.00023199,2]
[349360817,1737135047113,-500.0,0.00023199,2]
[349360819,1737135047122,-500.0,0.00023199,2]
[349360821,1737135047131,-500.0,0.00023199,2]
[349360823,1737135047141,-500.0,0.00023199,2]
[349360825,1737135047152,-500.0,0.00023199,2]
[349360827,1737135047161,-500.0,0.00023199,2]
[349360829,1737135047172,-500.0,0.00023199,2]
[349360831,1737135047182,-500.0,0.00023199,2]
[349360833,1737135047191,-500.0,0.00023199,2]
[349360835,1737135047201,-500.0,0.00023199,2]
[349360837,1737135047211,-500.0,0.00023199,2]
[349360839,1737135047220,-305.98,0.00023199,2]
[349360841,1737135047230,-500.0,0.00023199,2]
[349360843,1737135047239,-500.0,0.00023199,2]
[349360845,1737135047249,-500.0,0.00023199,2]
[349360847,1737135047258,-500.0,0.00023199,2]
[349360849,1737135047267,-500.0,0.00023199,2]
[349360851,1737135047277,-535.9,0.00023199,2]
[349360853,1737135047287,-500.0,0.00023199,2]
[349360855,1737135047296,-500.0,0.00023199,2]
[349360857,1737135047306,-501.43953832,0.00023199,2]
[349360859,1737135047315,-500.0,0.00023199,2]
[349360861,1737135047324,-500.0,0.00023199,2]
[349360863,1737135047333,-500.0,0.00023199,2]
[349360865,1737135047343,-500.0,0.00023199,2]
[349360867,1737135047353,-500.0,0.00023199,2]
[349360869,1737135047362,-500.0,0.00023199,2]
[349360871,1737135047372,-500.0,0.00023199,2]
[349360873,1737135047381,-500.0,0.00023199,2]
[349360875,1737135047392,-500.0,0.00023199,2]
[349360877,1737135047403,-500.0,0.00023199,2]
[349360879,1737135047412,-511.34,0.00023199,2]
[349360881,1737135047421,-500.0,0.00023199,2]
[349360883,1737135047430,-500.0,0.00023199,2]
[349360885,1737135047440,-500.0,0.00023199,2]
[349360887,1737135047449,-500.0,0.00023199,2]
[349360889,1737135047459,-500.0,0.00023199,2]
[349360891,1737135047468,-500.0,0.00023199,2]
[349360893,1737135047478,-500.0,0.00023199,2]
[349360895,1737135047488,-500.0,0.00023199,2]
[349360897,1737135047498,-1615964.18277654,0.000232,2]
[349360899,1737135047508,-12361.4145047,0.000232,2]
[349360901,1737135047517,-970917.73395152,0.000232,2]
[349360920,1737135047707,-1051.2,0.000232,2]
[349360923,1737135047723,-1010.2771488,0.000232,2]
[349360926,1737135047739,-72747.32418858,0.000232,2]
[349360928,1737135047751,-1929.40656563,0.000232,2]
[349360939,1737135047856,-34393.737843,0.000232,2]
[349360941,1737135047868,-13682.619486,0.000232,2]
[349360943,1737135047880,-41515.42147276,0.000232,2]
[349360946,1737135047898,-1118.35072588,0.000232,2]
[349360959,1737135048017,-178.0,0.00022,2]
[349360961,1737135048027,-500.0,0.00022998,2]
[349360963,1737135048038,-500.0,0.00023013,2]
[349360965,1737135048049,-178.0,0.00023014,2]
[349360967,1737135048059,-348.21483278,0.00023092,2]
[349360969,1737135048069,-500.0,0.00023099,2]
[349360971,1737135048079,-470.49,0.00023179,2]
[349360973,1737135048089,-500.0,0.00023199,2]
[349360975,1737135048099,-500.0,0.00023199,2]
[349360977,1737135048110,-500.0,0.00023199,2]
[349360979,1737135048120,-556.72,0.00023199,2]
[349360981,1737135048130,-1298.05516728,0.000232,2]
[349360983,1737135048143,-266.36705645,0.000232,2]
[349361003,1737135048332,-10963.58763814,0.000232,2]
[349361011,1737135048488,-294.02125602,0.00022998,2]
[349361013,1737135048498,-500.0,0.00022998,2]
[349361014,1737135048508,-500.0,0.00022998,2]
[349361016,1737135048518,-500.0,0.00023013,2]
[349361018,1737135048528,-500.0,0.00023092,2]
[349361021,1737135048539,-571.31328091,0.00023093,2]
[349361023,1737135048549,-500.0,0.00023093,2]
[349361024,1737135048559,-500.0,0.00023198,2]
[349361026,1737135048569,-500.0,0.00023198,2]
[349361029,1737135048579,-500.0,0.00023199,2]
[349361031,1737135048589,-500.0,0.00023199,2]
[349361033,1737135048598,-500.0,0.00023199,2]
[349361034,1737135048608,-506.75,0.00023199,2]
[349361037,1737135048618,-30392.41546308,0.000232,2]
[349361054,1737135048790,-500.0,0.00022998,2]
[349361056,1737135048800,-27.37741369,0.00022998,2]
[349361058,1737135048812,-472.62258631,0.00022998,2]
[349361061,1737135048824,-500.0,0.00023013,2]
[349361063,1737135048834,-647.019788,0.00023013,2]
[349361065,1737135048844,-500.0,0.00023092,2]
[349361067,1737135048854,-500.0,0.00023093,2]
[349361069,1737135048864,-164.41,0.00023099,2]
[349361071,1737135048875,-647.019788,0.00023099,2]
[349361073,1737135048884,-500.0,0.00023179,2]
[349361075,1737135048894,-500.0,0.00023197,2]
[349361077,1737135048908,-500.0,0.00023198,2]
[349361079,1737135048918,-500.0,0.00023199,2]
[349361081,1737135048928,-500.0,0.00023199,2]
[349361083,1737135048938,-500.0,0.00023199,2]
[349361085,1737135048947,-5566.59791895,0.000232,2]
[349361096,1737135049048,-647.019788,0.00023179,2]
[349361098,1737135049057,-9749.24272025,0.000232,2]
[349361100,1737135049069,-171870.0,0.000232,2]
[349361103,1737135049089,-270.2324965,0.00023198,2]
[349361105,1737135049101,-229.7675035,0.00023198,2]
[349361107,1737135049111,-295.0324965,0.000232,2]
[349361110,1737135049123,-4020.99090375,0.000232,2]
[349361112,1737135049135,-11998.8163963,0.000232,2]
[349361114,1737135049147,-1050.86991415,0.000232,2]
[349361119,1737135049189,-500.0,0.00023199,2]
[349361121,1737135049199,-3630.4278381,0.000232,2]
[349361735,1737135593136,211.54,0.00010137,2]
[349361737,1737135774854,2000.0,0.00022027,120]
[349361738,1737135793322,500.0,0.00024821,120]
[349361739,1737135800325,2000.0,0.00024821,120]
[349361740,1737135812921,500.0,0.00024821,120]
[349361741,1737135823564,200.0,0.00024821,120]
[349361742,1737135903625,424.6797444,0.00026,120]
[349361743,1737135930898,150.0,0.00024092,120]
[349361744,1737136031170,-184.47,0.00016712,2]
[349361745,1737136031195,-524.4285833,0.00016713,2]
[349361746,1737136031216,-211.54,0.00016813,2]
[349361747,1737136031237,-524.42858329,0.000184,2]
[349361748,1737136031260,-228.95773651,0.00020186,2]
[349361749,1737136035189,-524.42858329,0.00020086,2]
[349361750,1737136035212,-667.10226349,0.00020186,2]
[349361751,1737136035234,-250.0,0.00021513,2]
[349361752,1737136035256,-961.55277519,0.00021513,2]
[349361753,1737136046123,-38.44722481,0.00021513,2]
[349361754,1737136046146,-150.0,0.00021973,2]
[349361755,1737136046167,-617.0,0.00022,2]
[349361756,1737136046190,-188.16,0.00022006,2]
[349361757,1737136046210,-216.9,0.00022103,2]
[349361758,1737136046231,-416.63,0.00022115,2]
[349361759,1737136046253,-250.0,0.00022133,2]
[349361760,1737136046274,-617.0,0.00022192,2]
[349361761,1737136046295,-307.09,0.00022197,2]
[349361762,1737136046316,-500.0,0.00022339,2]
[349361763,1737136046336,-200.0,0.00022345,2]
[349361764,1737136046359,-896.06,0.0002245,2]
[349361765,1737136046381,-477.278726,0.00022486,2]
[349361766,1737136046406,-150.0,0.00022669,2]
[349361767,1737136046427,-688.57930177,0.00022898,2]
[349361768,1737136046451,-159.93747236,0.00022913,2]
[349361769,1737136046477,-300.0,0.00022969,2]
[349361770,1737136046499,-721.91627446,0.0002297,2]
[349361771,1737136050894,150.0,0.00023141,120]
[349361772,1737136230771,150.0,0.00023156,120]
[349361789,1737136231578,-2855.91574988,0.000212,2]
[349361790,1737136231589,-99.08425012,0.000212,2]